[Event "*** Titled Tuesday Blitz"]
[Site "Chess.com"]
[Date "2020.01.07"]
[Round "5"]
[White "Irishchessman16"]
[Black "lupta_robin"]
[Result "0-1"]
[WhiteElo "2214"]
[BlackElo "2526"]
[TimeControl "180+2"]
[EndTime "14:08:14 PST"]
[Termination "lupta_robin won by resignation"]

1. d4 {[%clk 0:03:01.9]} 1... g6 {[%clk 0:03:00.2]} 2. c4 {[%clk 0:02:59.3]}
2... Nf6 {[%clk 0:03:01.3]} 3. Nc3 {[%clk 0:02:59]} 3... d5 {[%clk 0:03:02.1]}
4. Nf3 {[%clk 0:02:57.8]} 4... Bg7 {[%clk 0:03:02.5]} 5. h4 {[%clk 0:02:59.4]}
5... dxc4 {[%clk 0:02:56.6]} 6. e4 {[%clk 0:02:58.2]} 6... c5 {[%clk 0:02:58]}
7. d5 {[%clk 0:02:55.3]} 7... b5 {[%clk 0:02:56.1]} 8. h5 {[%clk 0:02:51.9]}
8... Nxh5 {[%clk 0:02:44.8]} 9. Nxb5 {[%clk 0:02:46]} 9... O-O {[%clk
0:02:29.9]} 10. Bxc4 {[%clk 0:02:24.7]} 10... Bg4 {[%clk 0:02:28.7]} 11. Rh4
{[%clk 0:02:22.2]} 11... Bxf3 {[%clk 0:02:21.6]} 12. Qxf3 {[%clk 0:02:21.1]}
12... Nd7 {[%clk 0:02:21.5]} 13. g4 {[%clk 0:02:17.9]} 13... Ne5 {[%clk
0:02:12.6]} 14. Qe2 {[%clk 0:02:18]} 14... e6 {[%clk 0:02:00.9]} 15. Rh1 {[%clk
0:02:16.1]} 15... Nxc4 {[%clk 0:01:59.9]} 16. Qxc4 {[%clk 0:02:13.5]} 16... exd5
{[%clk 0:01:52.8]} 17. Qxd5 {[%clk 0:02:10.4]} 17... Qa5+ {[%clk 0:01:53.4]} 18.
Nc3 {[%clk 0:01:59.3]} 18... Bxc3+ {[%clk 0:01:53.2]} 19. bxc3 {[%clk
0:02:01.2]} 19... Qxc3+ {[%clk 0:01:53.6]} 20. Qd2 {[%clk 0:02:02.6]} 20... Qxa1
{[%clk 0:01:38.2]} 21. gxh5 {[%clk 0:01:41.9]} 21... Rad8 {[%clk 0:01:26]} 22.
Qe3 {[%clk 0:01:40.6]} 22... Rfe8 {[%clk 0:01:13.9]} 23. hxg6 {[%clk 0:01:37.4]}
23... hxg6 {[%clk 0:01:12.9]} 24. Ke2 {[%clk 0:01:28.2]} 24... Qd4 {[%clk
0:01:07.5]} 25. Qxd4 {[%clk 0:01:28.1]} 25... Rxd4 {[%clk 0:00:57.9]} 26. Bb2
{[%clk 0:01:25.4]} 26... Rdxe4+ {[%clk 0:00:53.2]} 27. Kf3 {[%clk 0:01:25.7]}
27... f6 {[%clk 0:00:51.8]} 28. Bxf6 {[%clk 0:01:22.7]} 28... Ra4 {[%clk
0:00:45.8]} 29. Kg3 {[%clk 0:01:12]} 29... Rxa2 {[%clk 0:00:43.3]} 30. f4 {[%clk
0:01:12.4]} 30... c4 {[%clk 0:00:37.5]} 31. Be5 {[%clk 0:01:11.1]} 31... c3
{[%clk 0:00:37.2]} 32. Kg4 {[%clk 0:01:08.5]} 32... c2 {[%clk 0:00:30.8]} 33.
Kg5 {[%clk 0:01:03.4]} 33... Kf7 {[%clk 0:00:29.8]} 34. Rh8 {[%clk 0:00:54]}
34... Rxh8 {[%clk 0:00:29.9]} 0-1

[Event "*** Titled Tuesday Blitz"]
[Site "Chess.com"]
[Date "2020.01.07"]
[Round "5"]
[White "JMatias"]
[Black "Sanan_Sjugirov"]
[Result "1-0"]
[WhiteElo "2442"]
[BlackElo "2912"]
[TimeControl "180+2"]
[EndTime "14:08:19 PST"]
[Termination "JMatias won on time"]

1. e4 {[%clk 0:03:01.9]} 1... e6 {[%clk 0:03:00.8]} 2. d4 {[%clk 0:03:00.5]}
2... d5 {[%clk 0:03:02.2]} 3. exd5 {[%clk 0:03:00.9]} 3... exd5 {[%clk
0:03:03.2]} 4. Qe2+ {[%clk 0:03:00.7]} 4... Be7 {[%clk 0:02:59.8]} 5. Nf3 {[%clk
0:02:58]} 5... Nf6 {[%clk 0:03:00]} 6. h3 {[%clk 0:02:46.2]} 6... O-O {[%clk
0:03:00]} 7. Nc3 {[%clk 0:02:45.4]} 7... Bb4 {[%clk 0:02:56.6]} 8. Be3 {[%clk
0:02:40.2]} 8... Ne4 {[%clk 0:02:55.8]} 9. Qd3 {[%clk 0:02:34.9]} 9... c5 {[%clk
0:02:54.2]} 10. dxc5 {[%clk 0:02:27.5]} 10... Bf5 {[%clk 0:02:53.6]} 11. Nd4
{[%clk 0:02:26.8]} 11... Bg6 {[%clk 0:02:49]} 12. Qb5 {[%clk 0:02:21.1]} 12...
Na6 {[%clk 0:02:37.1]} 13. Ne2 {[%clk 0:02:12.5]} 13... Rc8 {[%clk 0:01:24.2]}
14. O-O-O {[%clk 0:02:04.6]} 14... Bxc5 {[%clk 0:01:03.7]} 15. Bxc5 {[%clk
0:01:22.5]} 15... Naxc5 {[%clk 0:01:02.8]} 16. Rxd5 {[%clk 0:01:20.3]} 16... Qf6
{[%clk 0:01:01.3]} 17. f3 {[%clk 0:01:14.4]} 17... a6 {[%clk 0:00:29.6]} 18. Qb4
{[%clk 0:00:55.7]} 18... Nf2 {[%clk 0:00:20.7]} 19. Rg1 {[%clk 0:00:40.4]} 19...
Ne6 {[%clk 0:00:09.3]} 20. Kb1 {[%clk 0:00:19.1]} 20... b5 {[%clk 0:00:08.9]}
21. Nc1 {[%clk 0:00:17.4]} 21... Nf4 {[%clk 0:00:01.7]} 22. Rd4 {[%clk
0:00:15.6]} 1-0

[Event "*** Titled Tuesday Blitz"]
[Site "Chess.com"]
[Date "2020.01.07"]
[Round "5"]
[White "Marty435"]
[Black "szefru"]
[Result "1-0"]
[WhiteElo "2359"]
[BlackElo "2130"]
[TimeControl "180+2"]
[EndTime "14:08:29 PST"]
[Termination "Marty435 won by checkmate"]

1. b3 {[%clk 0:03:01.1]} 1... b6 {[%clk 0:02:59.5]} 2. Bb2 {[%clk 0:03:01.8]}
2... Bb7 {[%clk 0:03:00.9]} 3. e3 {[%clk 0:03:02.4]} 3... Nf6 {[%clk 0:03:02.1]}
4. Nf3 {[%clk 0:03:00.1]} 4... d5 {[%clk 0:03:02.1]} 5. c4 {[%clk 0:02:59.4]}
5... Nbd7 {[%clk 0:03:02]} 6. cxd5 {[%clk 0:02:58.8]} 6... Nxd5 {[%clk 0:03:02]}
7. Be2 {[%clk 0:02:57.4]} 7... e6 {[%clk 0:03:00.7]} 8. O-O {[%clk 0:02:57.9]}
8... N7f6 {[%clk 0:02:58.7]} 9. d3 {[%clk 0:02:51.3]} 9... Be7 {[%clk
0:02:55.2]} 10. a3 {[%clk 0:02:51.1]} 10... O-O {[%clk 0:02:54.1]} 11. Nbd2
{[%clk 0:02:52.3]} 11... Bc5 {[%clk 0:02:47]} 12. Re1 {[%clk 0:02:35.5]} 12...
Ng4 {[%clk 0:02:42.4]} 13. d4 {[%clk 0:02:28.9]} 13... Bd6 {[%clk 0:02:39.2]}
14. Bf1 {[%clk 0:02:15]} 14... Ndf6 {[%clk 0:01:48.7]} 15. h3 {[%clk 0:02:03]}
15... Nh6 {[%clk 0:01:41.5]} 16. e4 {[%clk 0:02:01]} 16... Bf4 {[%clk
0:01:34.6]} 17. Qc2 {[%clk 0:01:44.5]} 17... Rc8 {[%clk 0:01:20.1]} 18. Rad1
{[%clk 0:01:25.3]} 18... Qe7 {[%clk 0:01:11]} 19. Bd3 {[%clk 0:00:32.9]} 19...
g6 {[%clk 0:00:59.4]} 20. Nf1 {[%clk 0:00:21.7]} 20... c5 {[%clk 0:00:57.4]} 21.
d5 {[%clk 0:00:22.3]} 21... exd5 {[%clk 0:00:32]} 22. exd5 {[%clk 0:00:22.5]}
22... Qd6 {[%clk 0:00:32]} 23. Qc3 {[%clk 0:00:19.9]} 23... Kg7 {[%clk 0:00:23]}
24. g3 {[%clk 0:00:20.7]} 24... Bxd5 {[%clk 0:00:17.8]} 25. N3h2 {[%clk
0:00:15.9]} 25... Bxg3 {[%clk 0:00:17.2]} 26. Nxg3 {[%clk 0:00:16.5]} 26... c4
{[%clk 0:00:15.4]} 27. bxc4 {[%clk 0:00:14.9]} 27... Be6 {[%clk 0:00:12.2]} 28.
Qxf6+ {[%clk 0:00:13.9]} 28... Kg8 {[%clk 0:00:13.2]} 29. Qg7# {[%clk
0:00:15.2]} 1-0

[Event "*** Titled Tuesday Blitz"]
[Site "Chess.com"]
[Date "2020.01.07"]
[Round "5"]
[White "TigrVShlyape"]
[Black "DamianoLew95"]
[Result "1-0"]
[WhiteElo "2812"]
[BlackElo "2592"]
[TimeControl "180+2"]
[EndTime "14:08:41 PST"]
[Termination "TigrVShlyape won by resignation"]

1. d4 {[%clk 0:03:01.9]} 1... d5 {[%clk 0:02:58.2]} 2. Nf3 {[%clk 0:03:02.9]}
2... Nf6 {[%clk 0:02:58.3]} 3. Bf4 {[%clk 0:03:03.8]} 3... e6 {[%clk 0:02:56.8]}
4. e3 {[%clk 0:03:04.9]} 4... Bd6 {[%clk 0:02:57.7]} 5. Bxd6 {[%clk 0:03:04.7]}
5... Qxd6 {[%clk 0:02:57.1]} 6. c4 {[%clk 0:03:05.7]} 6... Nbd7 {[%clk
0:02:54.2]} 7. Nc3 {[%clk 0:03:06.6]} 7... c6 {[%clk 0:02:54.7]} 8. a3 {[%clk
0:03:05.9]} 8... O-O {[%clk 0:02:54.3]} 9. Qc2 {[%clk 0:02:55.2]} 9... Re8
{[%clk 0:02:51.4]} 10. Rd1 {[%clk 0:02:54.3]} 10... Qe7 {[%clk 0:02:51.1]} 11.
Be2 {[%clk 0:02:53.4]} 11... h6 {[%clk 0:02:46.8]} 12. O-O {[%clk 0:02:53.8]}
12... b6 {[%clk 0:02:43.6]} 13. Ne5 {[%clk 0:02:34.5]} 13... Nxe5 {[%clk
0:02:41.9]} 14. dxe5 {[%clk 0:02:35.1]} 14... Nd7 {[%clk 0:02:42.1]} 15. f4
{[%clk 0:02:35.1]} 15... f6 {[%clk 0:02:35.4]} 16. exf6 {[%clk 0:02:09.7]} 16...
Nxf6 {[%clk 0:02:29.1]} 17. Kh1 {[%clk 0:02:06.7]} 17... Bb7 {[%clk 0:02:24.2]}
18. e4 {[%clk 0:02:03.3]} 18... dxe4 {[%clk 0:02:21.1]} 19. Nxe4 {[%clk
0:02:03.8]} 19... Rad8 {[%clk 0:01:53.5]} 20. c5 {[%clk 0:01:44.1]} 20... Nxe4
{[%clk 0:01:15.7]} 21. Qxe4 {[%clk 0:01:43.9]} 21... bxc5 {[%clk 0:01:12]} 22.
Bd3 {[%clk 0:01:36.1]} 22... g5 {[%clk 0:01:12.9]} 23. fxg5 {[%clk 0:01:34.2]}
23... hxg5 {[%clk 0:01:10.1]} 24. Bc4 {[%clk 0:01:23.6]} 24... Bc8 {[%clk
0:01:02.3]} 25. Qe5 {[%clk 0:01:18]} 25... Rf8 {[%clk 0:00:59.2]} 26. Rxd8
{[%clk 0:01:10]} 26... Rxd8 {[%clk 0:00:42.7]} 27. h3 {[%clk 0:01:09.7]} 27...
Rd4 {[%clk 0:00:36.9]} 28. b3 {[%clk 0:01:08.5]} 28... a5 {[%clk 0:00:23.3]} 29.
a4 {[%clk 0:01:08.2]} 29... Bd7 {[%clk 0:00:16.1]} 30. Qc7 {[%clk 0:00:52.4]}
30... Kg7 {[%clk 0:00:14.6]} 31. Qe5+ {[%clk 0:00:50.9]} 31... Kg8 {[%clk
0:00:15.7]} 32. Kg1 {[%clk 0:00:48.5]} 32... Rd2 {[%clk 0:00:07]} 33. Rf6 {[%clk
0:00:47]} 33... Qg7 {[%clk 0:00:03]} 34. Bxe6+ {[%clk 0:00:46.1]} 34... Bxe6
{[%clk 0:00:04.1]} 35. Qxe6+ {[%clk 0:00:46.9]} 35... Kh8 {[%clk 0:00:05.3]} 36.
Rh6+ {[%clk 0:00:47.5]} 1-0

[Event "*** Titled Tuesday Blitz"]
[Site "Chess.com"]
[Date "2020.01.07"]
[Round "5"]
[White "TheBigBadChessDad"]
[Black "secretsuperstar7"]
[Result "0-1"]
[WhiteElo "2280"]
[BlackElo "2226"]
[TimeControl "180+2"]
[EndTime "14:08:44 PST"]
[Termination "secretsuperstar7 won by resignation"]

1. d4 {[%clk 0:03:01.9]} 1... d5 {[%clk 0:03:00.2]} 2. Bf4 {[%clk 0:03:02]} 2...
Nf6 {[%clk 0:03:00.8]} 3. e3 {[%clk 0:03:02.8]} 3... e6 {[%clk 0:03:00.8]} 4.
Nd2 {[%clk 0:03:01.1]} 4... c5 {[%clk 0:03:01.4]} 5. c3 {[%clk 0:03:02]} 5...
Nc6 {[%clk 0:03:00.7]} 6. Ngf3 {[%clk 0:02:59.3]} 6... cxd4 {[%clk 0:02:57.9]}
7. cxd4 {[%clk 0:02:57.6]} 7... Nh5 {[%clk 0:02:54.7]} 8. Bg3 {[%clk 0:02:56.7]}
8... g6 {[%clk 0:02:55]} 9. a3 {[%clk 0:02:56.2]} 9... Bg7 {[%clk 0:02:53.8]}
10. Bd3 {[%clk 0:02:56]} 10... O-O {[%clk 0:02:53]} 11. Rc1 {[%clk 0:02:56.4]}
11... f6 {[%clk 0:02:48.4]} 12. Bb1 {[%clk 0:02:51.1]} 12... e5 {[%clk 0:02:49]}
13. Ba2 {[%clk 0:02:48.8]} 13... Be6 {[%clk 0:02:46.9]} 14. dxe5 {[%clk
0:02:45.4]} 14... fxe5 {[%clk 0:02:29.5]} 15. Ne4 {[%clk 0:02:30.6]} 15... Kh8
{[%clk 0:02:15.5]} 16. Nc5 {[%clk 0:02:19.6]} 16... Bg8 {[%clk 0:02:12.9]} 17.
b4 {[%clk 0:02:07.3]} 17... e4 {[%clk 0:01:58.7]} 18. Nd4 {[%clk 0:01:50]} 18...
Nxd4 {[%clk 0:01:58.4]} 19. exd4 {[%clk 0:01:50.9]} 19... Nxg3 {[%clk
0:01:55.2]} 20. hxg3 {[%clk 0:01:49.7]} 20... Qf6 {[%clk 0:01:55.9]} 21. O-O
{[%clk 0:01:36.1]} 21... Qxd4 {[%clk 0:01:55.1]} 22. Qxd4 {[%clk 0:01:34.2]}
22... Bxd4 {[%clk 0:01:55.6]} 23. Rcd1 {[%clk 0:01:17]} 23... Bxc5 {[%clk
0:01:48.9]} 24. bxc5 {[%clk 0:01:18.2]} 24... Rad8 {[%clk 0:01:48.7]} 25. Rd4
{[%clk 0:01:14.4]} 25... Rd7 {[%clk 0:01:32.2]} 26. Rfd1 {[%clk 0:01:12.4]}
26... Rc8 {[%clk 0:01:28.9]} 27. Rxe4 {[%clk 0:01:10.6]} 27... dxe4 {[%clk
0:01:25.5]} 28. Rxd7 {[%clk 0:01:07.9]} 28... Bxa2 {[%clk 0:01:25.7]} 29. Rxb7
{[%clk 0:01:08.7]} 29... Rxc5 {[%clk 0:01:26.4]} 30. Rxa7 {[%clk 0:01:09.6]}
30... Rc1+ {[%clk 0:01:24.2]} 31. Kh2 {[%clk 0:01:10.3]} 31... Rc2 {[%clk
0:01:25]} 32. Re7 {[%clk 0:01:07.1]} 32... Rxf2 {[%clk 0:01:20]} 33. Rxe4 {[%clk
0:01:06.4]} 33... Bd5 {[%clk 0:01:20.6]} 34. Rd4 {[%clk 0:01:01.8]} 34... Bxg2
{[%clk 0:01:13.5]} 35. g4 {[%clk 0:00:59.9]} 35... Bc6+ {[%clk 0:01:06]} 36. Kg3
{[%clk 0:01:00.4]} 36... Rf3+ {[%clk 0:01:06.2]} 37. Kh4 {[%clk 0:01:01.6]}
37... h6 {[%clk 0:01:05.1]} 38. Rd6 {[%clk 0:00:56.6]} 38... Kg7 {[%clk
0:00:54.5]} 39. g5 {[%clk 0:00:54]} 39... hxg5+ {[%clk 0:00:48.8]} 40. Kxg5
{[%clk 0:00:52.9]} 40... Rf5+ {[%clk 0:00:48.5]} 41. Kg4 {[%clk 0:00:53.9]}
41... Bf3+ {[%clk 0:00:45.6]} 42. Kg3 {[%clk 0:00:53.1]} 42... Be4 {[%clk
0:00:46.5]} 43. a4 {[%clk 0:00:50.9]} 43... Ra5 {[%clk 0:00:46.2]} 44. Rd4
{[%clk 0:00:49.8]} 44... Bc6 {[%clk 0:00:44.3]} 0-1

[Event "*** Titled Tuesday Blitz"]
[Site "Chess.com"]
[Date "2020.01.07"]
[Round "5"]
[White "Alex_Molchanov"]
[Black "Durarbayli"]
[Result "0-1"]
[WhiteElo "2583"]
[BlackElo "2844"]
[TimeControl "180+2"]
[EndTime "14:08:48 PST"]
[Termination "Durarbayli won by resignation"]

1. d4 {[%clk 0:03:01.9]} 1... e6 {[%clk 0:02:48]} 2. Nf3 {[%clk 0:03:01.3]} 2...
c5 {[%clk 0:02:48]} 3. g3 {[%clk 0:03:01.4]} 3... cxd4 {[%clk 0:02:46.9]} 4. Bg2
{[%clk 0:03:01.3]} 4... Qa5+ {[%clk 0:02:43.4]} 5. Nbd2 {[%clk 0:02:37.2]} 5...
Nc6 {[%clk 0:02:41]} 6. O-O {[%clk 0:02:38.1]} 6... Nf6 {[%clk 0:02:40.7]} 7.
Nb3 {[%clk 0:02:37.3]} 7... Qb6 {[%clk 0:02:41.3]} 8. Nfxd4 {[%clk 0:02:35.4]}
8... Nxd4 {[%clk 0:02:41.1]} 9. Qxd4 {[%clk 0:02:25.3]} 9... Qxd4 {[%clk
0:02:40.7]} 10. Nxd4 {[%clk 0:02:27.2]} 10... Bc5 {[%clk 0:02:38.9]} 11. Nb3
{[%clk 0:02:25.9]} 11... Bb6 {[%clk 0:02:29.1]} 12. c4 {[%clk 0:02:24.8]} 12...
d6 {[%clk 0:02:28.7]} 13. Bf4 {[%clk 0:02:16.7]} 13... Ke7 {[%clk 0:02:29.2]}
14. Rfd1 {[%clk 0:01:57.6]} 14... Rd8 {[%clk 0:02:28.8]} 15. Rac1 {[%clk
0:01:54]} 15... e5 {[%clk 0:02:23]} 16. Bg5 {[%clk 0:01:51.8]} 16... Bg4 {[%clk
0:02:20.2]} 17. Bxb7 {[%clk 0:01:36.2]} 17... Bxe2 {[%clk 0:02:10.5]} 18. Re1
{[%clk 0:01:27.1]} 18... Rab8 {[%clk 0:02:11.3]} 19. c5 {[%clk 0:01:09.2]} 19...
Rxb7 {[%clk 0:01:53]} 20. Rxe2 {[%clk 0:00:40.4]} 20... Bc7 {[%clk 0:01:52.9]}
21. cxd6+ {[%clk 0:00:39.9]} 21... Bxd6 {[%clk 0:01:50.3]} 22. f4 {[%clk
0:00:40.2]} 22... Rb5 {[%clk 0:01:43.5]} 23. Rce1 {[%clk 0:00:26.6]} 23... h6
{[%clk 0:01:37.4]} 24. fxe5 {[%clk 0:00:24.3]} 24... hxg5 {[%clk 0:01:37.8]} 25.
exd6+ {[%clk 0:00:23.7]} 25... Kxd6 {[%clk 0:01:39.7]} 26. Rd1+ {[%clk 0:00:20]}
26... Rd5 {[%clk 0:01:39.3]} 27. Red2 {[%clk 0:00:20]} 27... Rb8 {[%clk
0:01:30.2]} 28. Nd4 {[%clk 0:00:16.3]} 28... Kd7 {[%clk 0:01:09.7]} 29. Nf5
{[%clk 0:00:16.8]} 29... Rxd2 {[%clk 0:01:05.6]} 30. Rxd2+ {[%clk 0:00:18.7]}
30... Ke6 {[%clk 0:01:05.2]} 31. Nxg7+ {[%clk 0:00:18.4]} 31... Ke5 {[%clk
0:01:06.7]} 32. Re2+ {[%clk 0:00:18.1]} 32... Ne4 {[%clk 0:01:07.4]} 33. Nh5
{[%clk 0:00:16.6]} 33... f5 {[%clk 0:01:05.5]} 34. g4 {[%clk 0:00:17.1]} 34...
f4 {[%clk 0:01:06.5]} 35. Nf6 {[%clk 0:00:17.1]} 35... Kxf6 {[%clk 0:01:06.8]}
36. Rxe4 {[%clk 0:00:18.6]} 36... Rxb2 {[%clk 0:01:08.3]} 37. Ra4 {[%clk
0:00:19.5]} 37... Ke5 {[%clk 0:01:05]} 38. Rxa7 {[%clk 0:00:17.7]} 38... Ke4
{[%clk 0:01:06.5]} 39. Ra3 {[%clk 0:00:17.9]} 39... f3 {[%clk 0:01:05.2]} 40.
Ra4+ {[%clk 0:00:17.1]} 40... Ke3 {[%clk 0:01:06.7]} 41. Ra3+ {[%clk 0:00:16.9]}
41... Ke2 {[%clk 0:01:07.7]} 42. Rb3 {[%clk 0:00:07.9]} 42... f2+ {[%clk
0:01:02.3]} 43. Kg2 {[%clk 0:00:08.8]} 43... f1=Q+ {[%clk 0:01:02.7]} 0-1

[Event "*** Titled Tuesday Blitz"]
[Site "Chess.com"]
[Date "2020.01.07"]
[Round "5"]
[White "ketster"]
[Black "wadsy27"]
[Result "0-1"]
[WhiteElo "2300"]
[BlackElo "2469"]
[TimeControl "180+2"]
[EndTime "14:08:59 PST"]
[Termination "wadsy27 won by checkmate"]

1. d4 {[%clk 0:02:59.2]} 1... Nf6 {[%clk 0:02:58.9]} 2. c4 {[%clk 0:02:44.6]}
2... c5 {[%clk 0:02:57]} 3. d5 {[%clk 0:02:43.2]} 3... e6 {[%clk 0:02:58.5]} 4.
Nc3 {[%clk 0:02:43.1]} 4... exd5 {[%clk 0:03:00.1]} 5. cxd5 {[%clk 0:02:45]}
5... d6 {[%clk 0:03:01.7]} 6. e4 {[%clk 0:02:45.8]} 6... g6 {[%clk 0:03:03.3]}
7. Nge2 {[%clk 0:02:45.3]} 7... Bg7 {[%clk 0:03:04.8]} 8. Ng3 {[%clk 0:02:46.4]}
8... a6 {[%clk 0:03:05.7]} 9. a4 {[%clk 0:02:46.2]} 9... Nbd7 {[%clk 0:03:06.6]}
10. Be2 {[%clk 0:02:47.1]} 10... h5 {[%clk 0:03:07.7]} 11. O-O {[%clk
0:02:47.3]} 11... h4 {[%clk 0:03:08.5]} 12. Nh1 {[%clk 0:02:47.9]} 12... Nh5
{[%clk 0:03:05.4]} 13. Be3 {[%clk 0:02:37]} 13... Qb6 {[%clk 0:02:57.7]} 14. Qd2
{[%clk 0:02:33.4]} 14... Qb4 {[%clk 0:02:52.6]} 15. a5 {[%clk 0:02:24.5]} 15...
b5 {[%clk 0:02:53.5]} 16. axb6 {[%clk 0:02:21.3]} 16... Nxb6 {[%clk 0:02:54.4]}
17. f4 {[%clk 0:02:00.9]} 17... O-O {[%clk 0:02:44]} 18. Nf2 {[%clk 0:01:46.2]}
18... Nc4 {[%clk 0:02:34.7]} 19. Bxc4 {[%clk 0:01:45.1]} 19... Qxc4 {[%clk
0:02:35.7]} 20. Ra4 {[%clk 0:01:45.6]} 20... Qb3 {[%clk 0:02:36.2]} 21. Ra3
{[%clk 0:01:44.1]} 21... Qb4 {[%clk 0:02:37.3]} 22. Rfa1 {[%clk 0:01:34.7]}
22... h3 {[%clk 0:02:23.2]} 23. gxh3 {[%clk 0:01:29.8]} 23... Re8 {[%clk
0:02:19.3]} 24. Ra4 {[%clk 0:01:27.2]} 24... Qb7 {[%clk 0:02:17.7]} 25. Kg2
{[%clk 0:01:05.3]} 25... Qe7 {[%clk 0:02:15.4]} 26. Re1 {[%clk 0:00:48.6]} 26...
Qh4 {[%clk 0:02:14.5]} 27. Ne2 {[%clk 0:00:47.5]} 27... f5 {[%clk 0:02:05]} 28.
Ng3 {[%clk 0:00:45]} 28... fxe4 {[%clk 0:02:00.1]} 29. Rxe4 {[%clk 0:00:44.3]}
29... Bf5 {[%clk 0:01:53.2]} 30. Rxe8+ {[%clk 0:00:37.3]} 30... Rxe8 {[%clk
0:01:54]} 31. Nxf5 {[%clk 0:00:33.7]} 31... gxf5 {[%clk 0:01:52.8]} 32. Re2
{[%clk 0:00:18.1]} 32... Bd4 {[%clk 0:01:39.5]} 33. Nd3 {[%clk 0:00:11.1]} 33...
Qe7 {[%clk 0:01:32.3]} 34. Kf2 {[%clk 0:00:05.1]} 34... Bf6 {[%clk 0:01:26.7]}
35. Kf1 {[%clk 0:00:04.2]} 35... Qe4 {[%clk 0:01:18.7]} 36. Bf2 {[%clk
0:00:03.5]} 36... Qh1+ {[%clk 0:01:19]} 37. Bg1 {[%clk 0:00:04.3]} 37... Re4
{[%clk 0:01:15.9]} 38. Rg2+ {[%clk 0:00:04.3]} 38... Kh7 {[%clk 0:01:14.4]} 39.
Qd1 {[%clk 0:00:05.5]} 39... Nxf4 {[%clk 0:01:13.1]} 40. Nf2 {[%clk 0:00:05.7]}
40... Qxg2# {[%clk 0:01:12.8]} 0-1

[Event "*** Titled Tuesday Blitz"]
[Site "Chess.com"]
[Date "2020.01.07"]
[Round "5"]
[White "boasovietica"]
[Black "MatthewG-p4p"]
[Result "0-1"]
[WhiteElo "2483"]
[BlackElo "2843"]
[TimeControl "180+2"]
[EndTime "14:09:05 PST"]
[Termination "MatthewG-p4p won by resignation"]

1. Nf3 {[%clk 0:03:00.6]} 1... c5 {[%clk 0:02:42.9]} 2. e4 {[%clk 0:02:59.4]}
2... e6 {[%clk 0:02:44.1]} 3. d4 {[%clk 0:02:59]} 3... cxd4 {[%clk 0:02:46]} 4.
Nxd4 {[%clk 0:02:58.2]} 4... a6 {[%clk 0:02:47.4]} 5. Nc3 {[%clk 0:02:55.7]}
5... b5 {[%clk 0:02:48.3]} 6. Be2 {[%clk 0:02:56.4]} 6... Bb7 {[%clk 0:02:49.3]}
7. Bf3 {[%clk 0:02:57.2]} 7... Qc7 {[%clk 0:02:48.8]} 8. O-O {[%clk 0:02:55.5]}
8... d6 {[%clk 0:02:49]} 9. Re1 {[%clk 0:02:54.9]} 9... Nf6 {[%clk 0:02:49.2]}
10. Bg5 {[%clk 0:02:43.4]} 10... Nbd7 {[%clk 0:02:49.1]} 11. a3 {[%clk
0:02:37.8]} 11... Be7 {[%clk 0:02:47.6]} 12. Qd2 {[%clk 0:02:27]} 12... Ne5
{[%clk 0:02:48.5]} 13. Rad1 {[%clk 0:02:13.8]} 13... Rc8 {[%clk 0:02:45.4]} 14.
Bxf6 {[%clk 0:01:53.5]} 14... gxf6 {[%clk 0:02:17.1]} 15. Bh5 {[%clk 0:01:34.8]}
15... Qc4 {[%clk 0:01:35.2]} 16. Qh6 {[%clk 0:01:30.5]} 16... Kd7 {[%clk
0:01:27.8]} 17. f4 {[%clk 0:01:21]} 17... Nc6 {[%clk 0:01:28.8]} 18. Nf3 {[%clk
0:01:11.7]} 18... Rcf8 {[%clk 0:01:24.2]} 19. Rd3 {[%clk 0:01:05.3]} 19... Kc7
{[%clk 0:01:19.6]} 20. f5 {[%clk 0:01:00.7]} 20... Ne5 {[%clk 0:01:16.2]} 21.
Nxe5 {[%clk 0:00:59.7]} 21... dxe5 {[%clk 0:01:16.8]} 22. Nd5+ {[%clk
0:00:53.2]} 22... exd5 {[%clk 0:01:06.9]} 23. Rc3 {[%clk 0:00:49.5]} 23... Bc5+
{[%clk 0:01:03.2]} 24. Kh1 {[%clk 0:00:46.9]} 24... Qd4 {[%clk 0:00:57.2]} 25.
Rd1 {[%clk 0:00:44.3]} 25... Qf2 {[%clk 0:00:55.6]} 26. b4 {[%clk 0:00:34.5]}
26... dxe4 {[%clk 0:00:48.7]} 27. Rxc5+ {[%clk 0:00:34]} 27... Kb8 {[%clk
0:00:46.3]} 28. Qxf6 {[%clk 0:00:33.3]} 28... e3 {[%clk 0:00:47.2]} 29. Qxe5+
{[%clk 0:00:28.7]} 29... Ka8 {[%clk 0:00:48.3]} 30. Rg1 {[%clk 0:00:27.5]} 30...
Rhg8 {[%clk 0:00:44.4]} 31. Rd5 {[%clk 0:00:20.3]} 31... e2 {[%clk 0:00:39.3]}
32. Bf3 {[%clk 0:00:14.9]} 32... Re8 {[%clk 0:00:28.1]} 33. Qc7 {[%clk
0:00:15.9]} 33... Qxf3 {[%clk 0:00:26.8]} 34. Rd8+ {[%clk 0:00:10.9]} 34... Rxd8
{[%clk 0:00:27.1]} 0-1